[Event "Early-Titled-Tuesday-Blitz-February-06-2024"]
[Site "Chess.com"]
[Date "2024.02.06"]
[Round "1"]
[White "Elnaz_Kaliakhmet"]
[Black "YouJustFoundYourGodfather"]
[Result "0-1"]
[WhiteElo "2161"]
[BlackElo "2568"]
[TimeControl "180+1"]
[EndTime "8:01:40 PST"]
[Termination "YouJustFoundYourGodfather won by resignation"]

1. d4 {[%clk 0:03:00]} 1... e6 {[%clk 0:02:50.7]} 2. c4 {[%clk 0:02:59.1]} 2...
b6 {[%clk 0:02:50.3]} 3. Nf3 {[%clk 0:02:58.4]} 3... Bb7 {[%clk 0:02:49]} 4. g3
{[%clk 0:02:58.7]} 4... f5 {[%clk 0:02:49.4]} 5. Bg2 {[%clk 0:02:58.3]} 5... Nf6
{[%clk 0:02:50]} 6. O-O {[%clk 0:02:58.5]} 6... Be7 {[%clk 0:02:50.5]} 7. Nc3
{[%clk 0:02:58.8]} 7... O-O {[%clk 0:02:50.4]} 8. d5 {[%clk 0:02:57.5]} 8... Qc8
{[%clk 0:02:48.2]} 9. Nd4 {[%clk 0:02:47.9]} 9... Na6 {[%clk 0:02:40.6]} 10.
dxe6 {[%clk 0:02:42.6]} 10... Bxg2 {[%clk 0:02:40]} 11. Kxg2 {[%clk 0:02:39.8]}
11... dxe6 {[%clk 0:02:38.5]} 12. Nc6 {[%clk 0:02:40.2]} 12... Qb7 {[%clk
0:02:37]} 13. Qd7 {[%clk 0:02:33.4]} 13... Nxd7 {[%clk 0:02:36.3]} 0-1

[Event "Early-Titled-Tuesday-Blitz-February-06-2024"]
[Site "Chess.com"]
[Date "2024.02.06"]
[Round "1"]
[White "Raud100"]
[Black "Andrey_Klymchuk"]
[Result "0-1"]
[WhiteElo "2436"]
[BlackElo "2782"]
[TimeControl "180+1"]
[EndTime "8:02:34 PST"]
[Termination "Andrey_Klymchuk won by resignation"]

1. d4 {[%clk 0:03:00.9]} 1... Nf6 {[%clk 0:02:59.4]} 2. c4 {[%clk 0:02:58.3]}
2... c5 {[%clk 0:02:59.1]} 3. d5 {[%clk 0:02:56.9]} 3... b5 {[%clk 0:02:59.3]}
4. cxb5 {[%clk 0:02:39.8]} 4... a6 {[%clk 0:02:59.4]} 5. bxa6 {[%clk 0:02:40.5]}
5... g6 {[%clk 0:02:59]} 6. Nc3 {[%clk 0:02:41]} 6... Bg7 {[%clk 0:02:59.3]} 7.
d6 {[%clk 0:02:39.2]} 7... O-O {[%clk 0:02:52.1]} 8. Nf3 {[%clk 0:02:37.4]} 8...
Nxa6 {[%clk 0:02:39.7]} 9. g3 {[%clk 0:02:36.5]} 9... exd6 {[%clk 0:02:35.5]}
10. Qxd6 {[%clk 0:02:37.2]} 10... Nb4 {[%clk 0:02:34.7]} 11. Qd1 {[%clk
0:02:23]} 11... d5 {[%clk 0:02:33.7]} 12. e3 {[%clk 0:02:23.2]} 12... Bf5 {[%clk
0:02:26.5]} 13. Ne5 {[%clk 0:01:57.5]} 13... Nc2+ {[%clk 0:02:21.2]} 0-1

[Event "Early-Titled-Tuesday-Blitz-February-06-2024"]
[Site "Chess.com"]
[Date "2024.02.06"]
[Round "1"]
[White "JeFumeDesClopes"]
[Black "DarZay"]
[Result "1-0"]
[WhiteElo "2605"]
[BlackElo "2261"]
[TimeControl "180+1"]
[EndTime "8:02:45 PST"]
[Termination "JeFumeDesClopes won by resignation"]

1. Nf3 {[%clk 0:03:00.9]} 1... d5 {[%clk 0:02:55.3]} 2. g3 {[%clk 0:02:56.8]}
2... c5 {[%clk 0:02:49.8]} 3. Bg2 {[%clk 0:02:56.9]} 3... Nc6 {[%clk 0:02:42.6]}
4. O-O {[%clk 0:02:57]} 4... e5 {[%clk 0:02:40.2]} 5. d3 {[%clk 0:02:57.6]} 5...
Nf6 {[%clk 0:02:39]} 6. c4 {[%clk 0:02:57.8]} 6... d4 {[%clk 0:02:37.5]} 7. b4
{[%clk 0:02:58.1]} 7... Bd6 {[%clk 0:02:32.7]} 8. b5 {[%clk 0:02:52.6]} 8... Ne7
{[%clk 0:02:31.9]} 9. e3 {[%clk 0:02:51.5]} 9... O-O {[%clk 0:02:29.4]} 10. exd4
{[%clk 0:02:48.3]} 10... exd4 {[%clk 0:02:27.9]} 11. Bg5 {[%clk 0:02:46.3]}
11... Ng6 {[%clk 0:02:27.1]} 12. Nbd2 {[%clk 0:02:45.4]} 12... h6 {[%clk
0:02:25.9]} 13. Bxf6 {[%clk 0:02:45.7]} 13... Qxf6 {[%clk 0:02:24.1]} 14. Ne4
{[%clk 0:02:46.3]} 14... Qe7 {[%clk 0:02:23.1]} 15. Nxd6 {[%clk 0:02:42.3]}
15... Qxd6 {[%clk 0:02:22.8]} 16. Nd2 {[%clk 0:02:37]} 16... a6 {[%clk
0:02:13.1]} 17. Re1 {[%clk 0:02:26.7]} 17... axb5 {[%clk 0:02:11.6]} 18. cxb5
{[%clk 0:02:27.6]} 18... Ra3 {[%clk 0:02:06.2]} 19. Nc4 {[%clk 0:02:27]} 1-0

[Event "Early-Titled-Tuesday-Blitz-February-06-2024"]
[Site "Chess.com"]
[Date "2024.02.06"]
[Round "1"]
[White "Ditman2007"]
[Black "GustavoAOliveira"]
[Result "1-0"]
[WhiteElo "2652"]
[BlackElo "2337"]
[TimeControl "180+1"]
[EndTime "8:02:46 PST"]
[Termination "Ditman2007 won by resignation"]

1. e4 {[%clk 0:03:00.9]} 1... Nf6 {[%clk 0:02:58.4]} 2. e5 {[%clk 0:02:53.9]}
2... Nd5 {[%clk 0:02:58.2]} 3. c4 {[%clk 0:02:54.7]} 3... Nb6 {[%clk 0:02:58.5]}
4. d4 {[%clk 0:02:55.4]} 4... d6 {[%clk 0:02:58.6]} 5. f4 {[%clk 0:02:55.8]}
5... g6 {[%clk 0:02:58.4]} 6. Nc3 {[%clk 0:02:55.4]} 6... Bg7 {[%clk 0:02:58.7]}
7. Be3 {[%clk 0:02:56.1]} 7... O-O {[%clk 0:02:58.8]} 8. Be2 {[%clk 0:02:55.6]}
8... N8d7 {[%clk 0:02:58.3]} 9. Nf3 {[%clk 0:02:51.8]} 9... c5 {[%clk
0:02:56.9]} 10. exd6 {[%clk 0:02:46.1]} 10... exd6 {[%clk 0:02:56.4]} 11. O-O
{[%clk 0:02:46.4]} 11... Re8 {[%clk 0:02:52.5]} 12. Bf2 {[%clk 0:02:46.1]} 12...
a6 {[%clk 0:02:43.1]} 13. Qd2 {[%clk 0:02:40.4]} 13... Qc7 {[%clk 0:02:35]} 14.
Rac1 {[%clk 0:02:21.8]} 14... cxd4 {[%clk 0:02:19.9]} 15. Bxd4 {[%clk
0:02:22.7]} 15... Nxc4 {[%clk 0:02:15.7]} 16. Bxc4 {[%clk 0:02:22.2]} 16... Qxc4
{[%clk 0:02:16.6]} 17. Bxg7 {[%clk 0:02:22.4]} 17... Kxg7 {[%clk 0:02:16.4]} 18.
Nd5 {[%clk 0:02:22.7]} 18... Qe2 {[%clk 0:02:00.3]} 19. Qc3+ {[%clk 0:02:21.8]}
19... Kg8 {[%clk 0:01:59.3]} 20. Rfe1 {[%clk 0:02:17.3]} 1-0

[Event "Early-Titled-Tuesday-Blitz-February-06-2024"]
[Site "Chess.com"]
[Date "2024.02.06"]
[Round "1"]
[White "Rosh1610"]
[Black "only_strong_moves"]
[Result "0-1"]
[WhiteElo "2352"]
[BlackElo "2673"]
[TimeControl "180+1"]
[EndTime "8:02:49 PST"]
[Termination "only_strong_moves won by resignation"]

1. e4 {[%clk 0:03:00.9]} 1... e5 {[%clk 0:03:00.2]} 2. Nf3 {[%clk 0:03:00.7]}
2... Nc6 {[%clk 0:03:00.8]} 3. Bb5 {[%clk 0:02:59.4]} 3... a6 {[%clk 0:03:01.3]}
4. Ba4 {[%clk 0:02:59.2]} 4... Nge7 {[%clk 0:03:01.7]} 5. c3 {[%clk 0:02:58.3]}
5... Ng6 {[%clk 0:02:52.7]} 6. d4 {[%clk 0:02:57.7]} 6... exd4 {[%clk
0:02:53.6]} 7. cxd4 {[%clk 0:02:55.4]} 7... Bb4+ {[%clk 0:02:54.1]} 8. Nc3
{[%clk 0:02:54.9]} 8... d5 {[%clk 0:02:54.5]} 9. O-O {[%clk 0:02:52.5]} 9...
dxe4 {[%clk 0:02:42.8]} 10. Nxe4 {[%clk 0:02:52]} 10... O-O {[%clk 0:02:43]} 11.
Bg5 {[%clk 0:02:47.8]} 11... f6 {[%clk 0:02:33.1]} 12. Bb3+ {[%clk 0:02:46]}
12... Kh8 {[%clk 0:02:33.4]} 13. Bd2 {[%clk 0:02:42.5]} 13... Be7 {[%clk
0:02:25.4]} 14. Bc3 {[%clk 0:02:40.9]} 14... Bg4 {[%clk 0:02:21.5]} 15. h3
{[%clk 0:02:40.8]} 15... Bxf3 {[%clk 0:02:21.1]} 16. Qxf3 {[%clk 0:02:38.7]}
16... Nxd4 {[%clk 0:02:21.4]} 17. Bxd4 {[%clk 0:02:38.4]} 17... Qxd4 {[%clk
0:02:22.3]} 18. Rad1 {[%clk 0:02:36.9]} 18... Qxb2 {[%clk 0:02:20.9]} 19. Rd7
{[%clk 0:02:36.7]} 19... Ne5 {[%clk 0:02:17.9]} 20. Qf5 {[%clk 0:02:31.8]} 20...
Nxd7 {[%clk 0:02:16.5]} 21. Qxd7 {[%clk 0:02:31.4]} 21... Qe5 {[%clk 0:02:16.1]}
22. Bc2 {[%clk 0:02:29.6]} 22... Rad8 {[%clk 0:02:15.4]} 23. Qg4 {[%clk
0:02:29.4]} 23... f5 {[%clk 0:02:15.2]} 24. Qh5 {[%clk 0:02:29.8]} 24... g6
{[%clk 0:02:14.7]} 25. Qh6 {[%clk 0:02:26.3]} 25... fxe4 {[%clk 0:02:14.2]} 26.
Re1 {[%clk 0:02:27.2]} 26... Bg5 {[%clk 0:02:10.8]} 0-1

[Event "Early-Titled-Tuesday-Blitz-February-06-2024"]
[Site "Chess.com"]
[Date "2024.02.06"]
[Round "1"]
[White "ReinisUz"]
[Black "Sanyura"]
[Result "0-1"]
[WhiteElo "2355"]
[BlackElo "2673"]
[TimeControl "180+1"]
[EndTime "8:03:21 PST"]
[Termination "Sanyura won by resignation"]

1. c4 {[%clk 0:03:00.9]} 1... Nf6 {[%clk 0:02:47.8]} 2. Nc3 {[%clk 0:02:59.8]}
2... g6 {[%clk 0:02:47.7]} 3. g3 {[%clk 0:02:59.8]} 3... Bg7 {[%clk 0:02:47.1]}
4. Bg2 {[%clk 0:03:00.4]} 4... d6 {[%clk 0:02:47]} 5. e4 {[%clk 0:03:00.6]} 5...
O-O {[%clk 0:02:46.9]} 6. Nge2 {[%clk 0:03:01.2]} 6... e5 {[%clk 0:02:46.9]} 7.
O-O {[%clk 0:03:01.6]} 7... Nc6 {[%clk 0:02:47.2]} 8. d3 {[%clk 0:03:01.8]} 8...
a6 {[%clk 0:02:46.5]} 9. h3 {[%clk 0:03:01.9]} 9... b5 {[%clk 0:02:46.5]} 10. b3
{[%clk 0:02:59]} 10... Rb8 {[%clk 0:02:38.7]} 11. Kh2 {[%clk 0:02:57.9]} 11...
Nh5 {[%clk 0:02:36.1]} 12. g4 {[%clk 0:02:47.2]} 12... Nf4 {[%clk 0:02:35.6]}
13. Nxf4 {[%clk 0:02:24.9]} 13... exf4 {[%clk 0:02:35.3]} 14. Bb2 {[%clk
0:02:21.8]} 14... Qh4 {[%clk 0:02:33.7]} 15. f3 {[%clk 0:02:09.2]} 15... h5
{[%clk 0:02:28.8]} 16. Qe1 {[%clk 0:02:05.5]} 16... Qg5 {[%clk 0:02:16.4]} 17.
Rb1 {[%clk 0:02:03]} 17... Ne5 {[%clk 0:02:11.5]} 18. Qe2 {[%clk 0:01:55.3]}
18... hxg4 {[%clk 0:02:06.6]} 19. fxg4 {[%clk 0:01:49.6]} 19... Bxg4 {[%clk
0:02:06]} 20. hxg4 {[%clk 0:01:46.5]} 20... Nxg4+ {[%clk 0:02:06.1]} 21. Kg1
{[%clk 0:01:46.6]} 21... Bd4+ {[%clk 0:02:05.9]} 0-1

[Event "Early-Titled-Tuesday-Blitz-February-06-2024"]
[Site "Chess.com"]
[Date "2024.02.06"]
[Round "1"]
[White "DonJuanEGenaro"]
[Black "JoliyRoger"]
[Result "1-0"]
[WhiteElo "2036"]
[BlackElo "2532"]
[TimeControl "180+1"]
[EndTime "8:03:24 PST"]
[Termination "DonJuanEGenaro won by resignation"]

1. c4 {[%clk 0:02:55.7]} 1... c5 {[%clk 0:02:59.2]} 2. Nc3 {[%clk 0:02:56]} 2...
Nf6 {[%clk 0:02:59.8]} 3. Nf3 {[%clk 0:02:55.5]} 3... e6 {[%clk 0:03:00.4]} 4.
e3 {[%clk 0:02:55.5]} 4... Nc6 {[%clk 0:03:00]} 5. d4 {[%clk 0:02:55]} 5... cxd4
{[%clk 0:03:00.9]} 6. exd4 {[%clk 0:02:54.3]} 6... d5 {[%clk 0:03:01.4]} 7. Be2
{[%clk 0:02:47.8]} 7... Bc5 {[%clk 0:03:00.1]} 8. dxc5 {[%clk 0:02:45.4]} 8...
d4 {[%clk 0:03:00.7]} 9. Nb5 {[%clk 0:02:42.4]} 9... e5 {[%clk 0:03:00.4]} 10.
Nd6+ {[%clk 0:02:41.1]} 10... Kf8 {[%clk 0:03:00.8]} 11. Nxc8 {[%clk 0:02:38.7]}
11... Rxc8 {[%clk 0:03:00.3]} 12. O-O {[%clk 0:02:37.5]} 12... e4 {[%clk
0:02:58.5]} 13. Bg5 {[%clk 0:02:22.8]} 13... exf3 {[%clk 0:02:27.2]} 14. Bxf3
{[%clk 0:02:22.2]} 14... h6 {[%clk 0:02:27]} 15. Bh4 {[%clk 0:02:19.6]} 15...
Qa5 {[%clk 0:02:20.4]} 16. Bxc6 {[%clk 0:02:11.2]} 16... Rxc6 {[%clk 0:02:19.4]}
17. Qxd4 {[%clk 0:02:10.1]} 17... Qxc5 {[%clk 0:02:15.7]} 18. Qd8+ {[%clk
0:02:03.5]} 18... Ne8 {[%clk 0:02:16]} 19. Rfe1 {[%clk 0:02:01.2]} 19... Re6
{[%clk 0:02:15.5]} 20. Rxe6 {[%clk 0:01:58.9]} 20... fxe6 {[%clk 0:02:16.4]} 21.
Rd1 {[%clk 0:01:55.9]} 21... g5 {[%clk 0:02:06.8]} 22. Bg3 {[%clk 0:01:51.9]}
22... Rh7 {[%clk 0:02:07.3]} 23. Bd6+ {[%clk 0:01:43]} 1-0

[Event "Early-Titled-Tuesday-Blitz-February-06-2024"]
[Site "Chess.com"]
[Date "2024.02.06"]
[Round "1"]
[White "FairChess_on_YouTube"]
[Black "jup1978"]
[Result "1-0"]
[WhiteElo "3086"]
[BlackElo "2529"]
[TimeControl "180+1"]
[EndTime "8:03:27 PST"]
[Termination "FairChess_on_YouTube won by resignation"]

1. d4 {[%clk 0:03:00.9]} 1... c5 {[%clk 0:02:59.9]} 2. d5 {[%clk 0:02:59]} 2...
e5 {[%clk 0:03:00.1]} 3. e4 {[%clk 0:02:57.5]} 3... d6 {[%clk 0:03:00.4]} 4. Nc3
{[%clk 0:02:57.8]} 4... Be7 {[%clk 0:03:00.7]} 5. a4 {[%clk 0:02:55.2]} 5... a6
{[%clk 0:03:00.4]} 6. a5 {[%clk 0:02:53.3]} 6... Bg5 {[%clk 0:02:57.8]} 7. Bxg5
{[%clk 0:02:52.6]} 7... Qxg5 {[%clk 0:02:58.7]} 8. Nf3 {[%clk 0:02:52.9]} 8...
Qd8 {[%clk 0:02:51]} 9. Nd2 {[%clk 0:02:51.7]} 9... Ne7 {[%clk 0:02:47.3]} 10.
Nc4 {[%clk 0:02:51.6]} 10... O-O {[%clk 0:02:40.4]} 11. Bd3 {[%clk 0:02:49.4]}
11... f5 {[%clk 0:02:39.2]} 12. O-O {[%clk 0:02:48.5]} 12... fxe4 {[%clk
0:02:38.5]} 13. Nxe4 {[%clk 0:02:42.3]} 13... Nf5 {[%clk 0:02:30.8]} 14. f4
{[%clk 0:02:37.2]} 14... exf4 {[%clk 0:02:20.1]} 15. Rxf4 {[%clk 0:02:38.1]}
15... Qe7 {[%clk 0:02:20.4]} 16. Nb6 {[%clk 0:02:24.9]} 16... Ne3 {[%clk
0:01:40]} 17. Qf3 {[%clk 0:02:12.3]} 17... Rxf4 {[%clk 0:01:21.5]} 18. Qxf4
{[%clk 0:02:13.2]} 1-0

[Event "Early-Titled-Tuesday-Blitz-February-06-2024"]
[Site "Chess.com"]
[Date "2024.02.06"]
[Round "1"]
[White "KubaGepard"]
[Black "ChampStan"]
[Result "1-0"]
[WhiteElo "2559"]
[BlackElo "2119"]
[TimeControl "180+1"]
[EndTime "8:03:30 PST"]
[Termination "KubaGepard won by resignation"]

1. d4 {[%clk 0:02:56.4]} 1... Nf6 {[%clk 0:02:59.1]} 2. Nf3 {[%clk 0:02:54.6]}
2... g6 {[%clk 0:02:57.6]} 3. g3 {[%clk 0:02:55]} 3... d5 {[%clk 0:02:55.2]} 4.
Bg2 {[%clk 0:02:53.8]} 4... Bg7 {[%clk 0:02:55.1]} 5. O-O {[%clk 0:02:53.5]}
5... O-O {[%clk 0:02:54.2]} 6. c4 {[%clk 0:02:54]} 6... dxc4 {[%clk 0:02:42.8]}
7. Na3 {[%clk 0:02:52.1]} 7... Bg4 {[%clk 0:01:47.8]} 8. Ne5 {[%clk 0:02:48.7]}
8... c6 {[%clk 0:01:39.7]} 9. Nxg4 {[%clk 0:02:45.9]} 9... Nxg4 {[%clk
0:01:38.3]} 10. e3 {[%clk 0:02:46]} 10... Nf6 {[%clk 0:01:36.6]} 11. Nxc4 {[%clk
0:02:44.6]} 11... Nbd7 {[%clk 0:01:34.3]} 12. b3 {[%clk 0:02:42.5]} 12... e6
{[%clk 0:01:11.8]} 13. Ba3 {[%clk 0:02:40.4]} 13... c5 {[%clk 0:01:08.1]} 14.
dxc5 {[%clk 0:02:39.1]} 14... Re8 {[%clk 0:00:50]} 15. Nd6 {[%clk 0:02:35.9]}
15... Re7 {[%clk 0:00:46.7]} 1-0

[Event "Early-Titled-Tuesday-Blitz-February-06-2024"]
[Site "Chess.com"]
[Date "2024.02.06"]
[Round "1"]
[White "Bekkedahl"]
[Black "biostatistician"]
[Result "0-1"]
[WhiteElo "2250"]
[BlackElo "2601"]
[TimeControl "180+1"]
[EndTime "8:03:48 PST"]
[Termination "biostatistician won by resignation"]

1. e4 {[%clk 0:03:00.9]} 1... e5 {[%clk 0:02:59.8]} 2. Nf3 {[%clk 0:02:56.3]}
2... Nc6 {[%clk 0:02:59.9]} 3. Bb5 {[%clk 0:02:57]} 3... Nf6 {[%clk 0:03:00]} 4.
O-O {[%clk 0:02:56.5]} 4... Nxe4 {[%clk 0:02:59.9]} 5. d4 {[%clk 0:02:55.6]}
5... Nd6 {[%clk 0:02:59.6]} 6. Bxc6 {[%clk 0:02:53.5]} 6... dxc6 {[%clk
0:03:00.5]} 7. dxe5 {[%clk 0:02:51.1]} 7... Nf5 {[%clk 0:03:00.3]} 8. Qe2 {[%clk
0:02:43.5]} 8... Nd4 {[%clk 0:02:58]} 9. Nxd4 {[%clk 0:02:43.1]} 9... Qxd4
{[%clk 0:02:58.9]} 10. Rd1 {[%clk 0:02:40.1]} 10... Bg4 {[%clk 0:02:58.8]} 11.
Rxd4 {[%clk 0:02:36.4]} 11... Bxe2 {[%clk 0:02:59]} 12. Nc3 {[%clk 0:02:32.8]}
12... Bh5 {[%clk 0:02:39]} 13. Bg5 {[%clk 0:02:32.9]} 13... h6 {[%clk 0:02:35]}
14. Bh4 {[%clk 0:02:32.8]} 14... Bc5 {[%clk 0:02:30.4]} 15. Rd2 {[%clk
0:02:28.2]} 15... g5 {[%clk 0:02:26.7]} 16. Bg3 {[%clk 0:02:27.7]} 16... Ke7
{[%clk 0:02:20]} 17. Ne4 {[%clk 0:02:14.7]} 17... Bb6 {[%clk 0:02:17.8]} 18. c4
{[%clk 0:02:08.2]} 18... Rad8 {[%clk 0:02:04.7]} 19. Kf1 {[%clk 0:01:26.3]}
19... Rxd2 {[%clk 0:02:02.1]} 20. Nxd2 {[%clk 0:01:27.2]} 20... Rd8 {[%clk
0:02:02.3]} 21. Ke1 {[%clk 0:01:24.8]} 21... Ba5 {[%clk 0:02:01.1]} 0-1

[Event "Early-Titled-Tuesday-Blitz-February-06-2024"]
[Site "Chess.com"]
[Date "2024.02.06"]
[Round "1"]
[White "Tssunami"]
[Black "JeRoma71"]
[Result "1-0"]
[WhiteElo "2510"]
[BlackElo "2866"]
[TimeControl "180+1"]
[EndTime "8:04:13 PST"]
[Termination "Tssunami won by resignation"]

1. e4 {[%clk 0:02:59.3]} 1... g6 {[%clk 0:02:58.8]} 2. d4 {[%clk 0:02:57.6]}
2... Bg7 {[%clk 0:02:59.7]} 3. Nc3 {[%clk 0:02:56.8]} 3... c6 {[%clk 0:02:59]}
4. Be3 {[%clk 0:02:57]} 4... d5 {[%clk 0:02:59.1]} 5. Nge2 {[%clk 0:02:52.1]}
5... dxe4 {[%clk 0:02:58.9]} 6. Nxe4 {[%clk 0:02:51.9]} 6... Nf6 {[%clk
0:02:59.5]} 7. N2c3 {[%clk 0:02:51]} 7... O-O {[%clk 0:02:58.6]} 8. Be2 {[%clk
0:02:46.4]} 8... Nbd7 {[%clk 0:02:57.9]} 9. O-O {[%clk 0:02:45.4]} 9... Nxe4
{[%clk 0:02:56.5]} 10. Nxe4 {[%clk 0:02:46.3]} 10... Nf6 {[%clk 0:02:57.1]} 11.
Ng3 {[%clk 0:02:44.8]} 11... b6 {[%clk 0:02:52.9]} 12. Bf3 {[%clk 0:02:41.3]}
12... Bb7 {[%clk 0:02:52.4]} 13. Re1 {[%clk 0:02:38.6]} 13... Rc8 {[%clk
0:02:50.8]} 14. Qd2 {[%clk 0:02:35.7]} 14... Qd7 {[%clk 0:02:47.9]} 15. Bh6
{[%clk 0:02:30.3]} 15... c5 {[%clk 0:02:43.6]} 16. Bxg7 {[%clk 0:02:27.4]} 16...
Kxg7 {[%clk 0:02:44.5]} 17. Bxb7 {[%clk 0:01:58.8]} 17... Qxb7 {[%clk
0:02:45.4]} 18. Qg5 {[%clk 0:01:54.9]} 18... Kh8 {[%clk 0:02:35.4]} 19. Rad1
{[%clk 0:01:22.6]} 19... cxd4 {[%clk 0:02:33.9]} 20. Rxd4 {[%clk 0:01:22.5]}
20... Rxc2 {[%clk 0:02:33.1]} 21. Rh4 {[%clk 0:01:17.7]} 21... Qd5 {[%clk
0:02:24.4]} 22. Qh6 {[%clk 0:01:12.2]} 22... Kg8 {[%clk 0:02:18.7]} 23. Ne4
{[%clk 0:00:58.1]} 23... Qxe4 {[%clk 0:02:09.2]} 1-0

[Event "Early-Titled-Tuesday-Blitz-February-06-2024"]
[Site "Chess.com"]
[Date "2024.02.06"]
[Round "1"]
[White "Szachulec75"]
[Black "Russian_berezka"]
[Result "0-1"]
[WhiteElo "2211"]
[BlackElo "2588"]
[TimeControl "180+1"]
[EndTime "8:04:18 PST"]
[Termination "Russian_berezka won by resignation"]

1. Nf3 {[%clk 0:03:00.9]} 1... Nf6 {[%clk 0:02:59.2]} 2. g3 {[%clk 0:02:59.8]}
2... d5 {[%clk 0:02:58.1]} 3. Bg2 {[%clk 0:03:00.7]} 3... c5 {[%clk 0:02:57.3]}
4. d3 {[%clk 0:03:00.7]} 4... g6 {[%clk 0:02:52.9]} 5. O-O {[%clk 0:03:01.6]}
5... Bg7 {[%clk 0:02:50.9]} 6. Nbd2 {[%clk 0:03:02]} 6... O-O {[%clk 0:02:48.6]}
7. e4 {[%clk 0:03:02.3]} 7... Nc6 {[%clk 0:02:48.5]} 8. Re1 {[%clk 0:03:00.7]}
8... e5 {[%clk 0:02:43.9]} 9. exd5 {[%clk 0:02:59.2]} 9... Nxd5 {[%clk
0:02:44.6]} 10. c3 {[%clk 0:02:54.3]} 10... h6 {[%clk 0:02:40.3]} 11. a4 {[%clk
0:02:52.4]} 11... b6 {[%clk 0:02:37.5]} 12. Nc4 {[%clk 0:02:52.5]} 12... Re8
{[%clk 0:02:32]} 13. Bd2 {[%clk 0:02:51.9]} 13... Kh7 {[%clk 0:02:11.5]} 14. Qc1
{[%clk 0:02:49.8]} 14... Bf5 {[%clk 0:02:04.2]} 15. Bf1 {[%clk 0:02:49.6]} 15...
Nc7 {[%clk 0:02:00.8]} 16. Qc2 {[%clk 0:02:44]} 16... Qd7 {[%clk 0:01:59.8]} 17.
Ne3 {[%clk 0:02:42.4]} 17... Be6 {[%clk 0:01:56.2]} 18. Rad1 {[%clk 0:02:41.1]}
18... Rad8 {[%clk 0:01:55.5]} 19. Bc1 {[%clk 0:02:22.1]} 19... f5 {[%clk
0:01:53.3]} 20. Bg2 {[%clk 0:02:20.3]} 20... Na5 {[%clk 0:01:50.7]} 21. Qe2
{[%clk 0:02:03.6]} 21... Qxa4 {[%clk 0:01:44.7]} 22. h4 {[%clk 0:01:58.8]} 22...
f4 {[%clk 0:01:41.6]} 23. Nf1 {[%clk 0:01:56.5]} 23... Bf5 {[%clk 0:01:32]} 24.
gxf4 {[%clk 0:01:44.4]} 24... exf4 {[%clk 0:01:30.9]} 25. Qd2 {[%clk 0:01:43.4]}
25... Rxd3 {[%clk 0:01:26.5]} 0-1

[Event "Early-Titled-Tuesday-Blitz-February-06-2024"]
[Site "Chess.com"]
[Date "2024.02.06"]
[Round "1"]
[White "grunbergmihai"]
[Black "NtcPou"]
[Result "1-0"]
[WhiteElo "2548"]
[BlackElo "2019"]
[TimeControl "180+1"]
[EndTime "8:04:21 PST"]
[Termination "grunbergmihai won by resignation"]

1. e4 {[%clk 0:02:57.4]} 1... c6 {[%clk 0:02:59.7]} 2. d4 {[%clk 0:02:57]} 2...
d5 {[%clk 0:02:58]} 3. Nc3 {[%clk 0:02:57.9]} 3... dxe4 {[%clk 0:02:57.8]} 4.
Nxe4 {[%clk 0:02:58.8]} 4... Bf5 {[%clk 0:02:58.1]} 5. Ng3 {[%clk 0:02:58.9]}
5... Bg6 {[%clk 0:02:58.6]} 6. f4 {[%clk 0:02:59.5]} 6... e6 {[%clk 0:02:58.2]}
7. Nf3 {[%clk 0:02:59.6]} 7... Nf6 {[%clk 0:02:58.1]} 8. h4 {[%clk 0:02:59.6]}
8... h6 {[%clk 0:02:46.7]} 9. h5 {[%clk 0:02:58.7]} 9... Bh7 {[%clk 0:02:46.9]}
10. Be3 {[%clk 0:02:59.1]} 10... Nbd7 {[%clk 0:02:31.1]} 11. Bd3 {[%clk
0:02:57.8]} 11... Bxd3 {[%clk 0:02:30.1]} 12. Qxd3 {[%clk 0:02:57.9]} 12... Bd6
{[%clk 0:02:21]} 13. O-O-O {[%clk 0:02:56.6]} 13... Qc7 {[%clk 0:02:08.9]} 14.
Ne5 {[%clk 0:02:53.2]} 14... c5 {[%clk 0:01:51.7]} 15. Ne4 {[%clk 0:02:47]}
15... Nxe4 {[%clk 0:01:51]} 16. Qxe4 {[%clk 0:02:46.8]} 16... Nf6 {[%clk
0:01:51.5]} 17. Qd3 {[%clk 0:02:44.7]} 17... cxd4 {[%clk 0:01:48.6]} 18. Qb5+
{[%clk 0:02:42.1]} 18... Nd7 {[%clk 0:01:41.3]} 19. Bxd4 {[%clk 0:02:39.5]}
19... O-O-O {[%clk 0:01:13.9]} 20. Nxf7 {[%clk 0:02:33.4]} 20... Bxf4+ {[%clk
0:01:13.6]} 21. Kb1 {[%clk 0:02:33.4]} 21... Nf6 {[%clk 0:01:10.2]} 22. Nxd8
{[%clk 0:02:27]} 22... Rxd8 {[%clk 0:01:09.1]} 23. Bxa7 {[%clk 0:02:24.4]} 23...
Nd5 {[%clk 0:00:54.7]} 24. c4 {[%clk 0:02:20.7]} 24... Ne3 {[%clk 0:00:52.1]}
25. Bb6 {[%clk 0:02:20.2]} 25... Rxd1+ {[%clk 0:00:45]} 26. Rxd1 {[%clk
0:02:19.1]} 1-0